Cogmind - Beta 14 @@@ ROGUE MODE // 2024.10.27 @ 12:22:48 Player: corey Result: Destroyed by Y-45 Defender with Beam Rifle Performance ------------- Evolutions (1) 500 Regions Visited (2) 400 Robots Destroyed (19) 95 Value Destroyed (239) 239 Prototype IDs (1) 20 Alien Tech Used (0) 0 Bonus (22) 22 TOTAL SCORE: 1276 Bonus ------- High Alert Combat Kills 22 Cogmind --------- Core Integrity 0/400 Matter 28/300 Energy 300/300 System Corruption 0% Temperature Cool (27) Movement Core (1350) Ox26 Location -9/Materials Parts ------- > --- POWER (1) -------- (None) > --- PROPULSION (2) --- (None) > --- UTILITY (4) ------ Huge Storage Unit Compact Battery > --- WEAPON (2) ------- (None) > --- INVENTORY (25) --- Ion Engine Ion Engine Light Ion Engine Light Ion Engine Light Ion Engine Wheel Small Battery (100) Compact Battery (200) Compact Battery (200) Structural Scanner Visual Processing Unit Signal Interpreter Targeting Computer Medium Armor Plating Improved Assault Rifle Improved Assault Rifle Improved Assault Rifle Improved Assault Rifle Minigun Minigun Minigun Minigun Light Cannon Grenade Launcher Grenade Launcher Peak State ------------ > --- POWER ------------ Light Ion Engine > --- PROPULSION ------- Wheel Compact Wheel > --- UTILITY ---------- Huge Storage Unit Compact Battery Medium Matter Pod Medium Armor Plating > --- WEAPON ----------- Improved Assault Rifle Improved Assault Rifle > --- INVENTORY -------- Ion Engine Ion Engine Light Ion Engine Light Ion Engine Light Ion Engine Wheel Wheel Compact Wheel Small Battery Compact Battery Structural Scanner Visual Processing Unit Signal Interpreter Targeting Computer Light Armor Plating Improved Assault Rifle Improved Assault Rifle Improved Assault Rifle Improved Assault Rifle Minigun Minigun Light Cannon Grenade Launcher Grenade Launcher Grenade Launcher [Rating: 20] Favorites ----------- Power Light Ion Engine Engine Light Ion Engine Propulsion Wheel Wheel Wheel Utility Huge Storage Unit Device Structural Scanner Storage Huge Storage Unit Protection Light Armor Plating Weapon Assault Rifle Ballistic Gun Assault Rifle Launcher Grenade Launcher Build | -11 -10 -9 ------- Run | Yrd Mat Mat Slots Evolved 2 | . . 2 Power . | . . . Propulsion . | . . . Utility 2 | . . 2 Weapon . | . . . Parts Attached 27 | 7 6 14 Power 5 | 2 1 2 Engine 5 | 2 1 2 Core . | . . . Reactor . | . . . Propulsion 5 | 2 . 3 Treads . | . . . Leg . | . . . Wheel 5 | 2 . 3 Hover . | . . . Flight . | . . . Utility 9 | 1 3 5 Device 1 | . . 1 Storage 4 | 1 1 2 Processor . | . . . Hackware . | . . . Protection 4 | . 2 2 Artifact . | . . . Weapon 8 | 2 2 4 Energy Gun . | . . . Energy Cannon . | . . . Ballistic Gun 6 | 2 . 4 Ballistic Cannon . | . . . Launcher 2 | . 2 . Special Weapon . | . . . Impact Weapon . | . . . Slashing Weapon . | . . . Piercing Weapon . | . . . Special Melee Weapon . | . . . Unidentified Prototypes 1 | . . 1 Parts Lost 5 | . 2 3 Power 2 | . 1 1 Propulsion 1 | . . 1 Utility 1 | . . 1 Weapon 1 | . 1 . Highest Loss Streak 2 | . 2 2 To Critical Strikes . | . . . Average Slot Usage (%) 90 | . 98 85 Engine 11 | . 14 9 Wheel 21 | . 28 17 Device 3 | . . 6 Storage 21 | . 14 26 Protection 9 | . 12 7 Ballistic Gun 16 | . 22 12 Launcher 4 | . 5 4 Peak Build Rating 20 | 6 9 20 Average Rating 10 | 3 7 13 On Entrance 5 | . 6 9 Naked Turns . | . . . Heaviest Build 99 | 12 91 99 Greatest Support 26 | 26 26 26 Greatest Overweight (x) 28 | . 3 28 Average Overweight (x) 2 | . 1 4 Largest Inventory Capacity 25 | 8 25 25 Average Capacity 22 | 7 20 25 Most Carried 25 | 4 25 25 Average Carried 18 | 1 12 23 Final Capacity 25 | 8 25 25 Final Carried 25 | 2 23 25 Class Distribution -------------------- 100% | Mutant Dominant Class ---------------- Mutant | -10/Materials Mutant | -9/Materials Resources | -11 -10 -9 ----------- Run | Yrd Mat Mat Matter Collected 442 | 184 256 2 Remotely . | . . . Salvage Created 284 | . 282 2 Parts 31 | . 29 2 Haulers Intercepted . | . . . Recyclers Shooed 1 | . . 1 Parts Field Recycled . | . . . Retrieved Matter . | . . . Parts Self-Destructed . | . . . Prevented . | . . . Kills | -11 -10 -9 ------- Run | Yrd Mat Mat Combat Hostiles Destroyed 11 | . 11 . Guns 5 | . 5 . AOE 6 | . 6 . Classes Destroyed 6 | . 6 . Worker 1 | . 1 . Builder 2 | . 2 . Recycler 2 | . 2 . Watcher 3 | . 2 1 Swarmer 9 | . 9 . Grunt 2 | . 2 . Best Kill Streak 7 | . 7 1 Combat Bots Only 5 | . 5 . Max Kills in Single Turn 3 | . 3 1 Gunslinging . | . . . Exploded 1 | . 1 . Melee . | . . . Uniques/NPCs Destroyed . | . . . Combat | -11 -10 -9 -------- Run | Yrd Mat Mat Hostile Shots Fired 107 | . 34 73 Missed 24 | . 10 14 Damage Taken 1047 | . 308 739 Core 445 | . 32 413 Absorbed by Shields . | . . . Regen/Repaired (Parts) 29 | . . 29 Core Remaining (%) 93 | 100 87 . Volleys Fired 31 | . 24 7 Largest 2 | . 2 2 Hottest 50 | . 50 50 Shots Fired 61 | . 47 14 Gun 48 | . 36 12 Cannon . | . . . Launcher 13 | . 11 2 Special . | . . . Kinetic 48 | . 36 12 Thermal . | . . . Explosive 13 | . 11 2 Electromagnetic . | . . . Robot Hit Streak 4 | . 4 3 Robot Miss Streak 3 | . 3 3 Penetration Max . | . . . Secondary Targets . | . . . Shots Hit Robots 30 | . 22 8 Core Hits 26 | . 23 3 Critical Kills . | . . . Critical Parts Destroyed . | . . . Critical Strikes . | . . . Melee Attacks . | . . . Impact . | . . . Slashing . | . . . Piercing . | . . . Sneak Attacks . | . . . Combat Hostiles . | . . . Follow-up Attacks . | . . . Damage Inflicted 1020 | . 849 171 Guns 337 | . 228 109 Cannons . | . . . Explosions 683 | . 621 62 Melee . | . . . Ramming . | . . . Kinetic 337 | . 228 109 Thermal . | . . . Explosive 683 | . 621 62 Electromagnetic . | . . . Impact . | . . . Slashing . | . . . Piercing . | . . . Highest Corruption . | . . . Average Corruption . | . . . Corruption Purged . | . . . Corruption Blocked . | . . . Overload Shots . | . . . Overflow Damage 31 | . 31 . Projectiles . | . . . Explosions 31 | . 31 . Melee . | . . . Knockbacks . | . . . Impact . | . . . Kinetic . | . . . Secondary . | . . . Self-Inflicted Damage 130 | . 92 38 Shots 5 | . 4 1 Rammed 2 | . . 2 Targets Rammed 2 | . . 2 Kicked . | . . . Crushed . | . . . Highest Temperature 9 | . 9 5 Average Temperature 5 | . 5 5 Received Heat Transfer 429 | . 36 393 Siege Activations . | . . . Robots Corrupted . | . . . Combat Hostiles . | . . . Parts Fried . | . . . Impact Corruptions . | . . . Robots Melted . | . . . Combat Hostiles . | . . . Parts Melted . | . . . Heat Transferred . | . . . Parts Sabotaged . | . . . Parts Stolen . | . . . Parts Stripped . | . . . Power Chain Reactions . | . . . Alert | -11 -10 -9 ------- Run | Yrd Mat Mat Peak Influence 545 | . 545 184 Initial 145 | . . 145 Average 164 | . 251 116 Maximum Alert Level 2 | . 2 . Low Security (%) 74 | 100 35 100 Level 1 17 | . 44 . Level 2 8 | . 20 . Level 3 . | . . . Level 4 . | . . . Level 5 . | . . . High Security . | . . . Max Security . | . . . Squads Dispatched 2 | . 1 1 Investigation 1 | . 1 . Extermination . | . . . Reinforcement 1 | . . 1 Assault . | . . . Garrison . | . . . Intercept . | . . . Searches Triggered . | . . . Construction Impeded . | . . . Haulers Reinforced . | . . . Active Scanning Responses . | . . . Cargo Convoy Interrupts . | . . . Stealth | -11 -10 -9 --------- Run | Yrd Mat Mat Distress Signals 1 | . 1 . Communications Jammed . | . . . Distress Signals . | . . . Times Spotted 20 | . 15 5 Peak Tracking Total 6 | . 6 3 Tactical Retreats . | . . . Traps | -11 -10 -9 ------- Run | Yrd Mat Mat Traps Triggered 4 | . 1 3 Indirectly . | . . . Trap Hack Attempts . | . . . Triggered . | . . . Disarmed . | . . . Reprogrammed . | . . . Reused . | . . . Traps Extracted . | . . . Installed . | . . . Triggered . | . . . Machines | -11 -10 -9 ---------- Run | Yrd Mat Mat Machines Disabled 1 | . 1 . Max in Single Turn 1 | . 1 . Machines Repaired . | . . . Machines Dismantled . | . . . Machines Sabotaged . | . . . Overloaded Fab Kills . | . . . Hacking | -11 -10 -9 --------- Run | Yrd Mat Mat Machines Accessed 3 | . 2 1 Terminals 2 | . 2 . Fabricators . | . . . Repair Stations 1 | . . 1 Recycling Units . | . . . Scanalyzers . | . . . Garrison Access . | . . . Total Hacks 10 | . 8 2 Successful 6 | . 4 2 Failed 4 | . 4 . Catastrophic 1 | . 1 . Database Lockouts . | . . . Manual . | . . . Terminals 8 | . 8 . Fabricators . | . . . Repair Stations 2 | . . 2 Recycling Units . | . . . Scanalyzers . | . . . Garrison Access . | . . . Terminal Hacks 4 | . 4 . Record 4 | . 4 . Fabricator Hacks . | . . . Repair Station Hacks 2 | . . 2 Scan Component 1 | . . 1 Repair 1 | . . 1 Recycling Unit Hacks . | . . . Scanalyzer . | . . . Garrison Access Hacks . | . . . Unauthorized Hacks . | . . . Terminals . | . . . Fabricators . | . . . Repair Stations . | . . . Recycling Units . | . . . Scanalyzers . | . . . Garrison Access . | . . . Data Cores Recovered . | . . . Used . | . . . Hacking Detections 2 | . 2 . Full Trace Events 2 | . 2 . Feedback Events . | . . . Feedback Blocked . | . . . Robot Schematics Acquired . | . . . Robots Built . | . . . Authchips . | . . . Time . | . . . Total Robot Build Rating . | . . . Part Schematics Acquired . | . . . Parts Built . | . . . Authchips . | . . . Time . | . . . Total Part Build Rating . | . . . Parts Repaired 1 | . . 1 Time 26 | . . 26 Parts Recycled . | . . . Recycled Matter . | . . . Retrieved Matter . | . . . Retrieved Components . | . . . Parts Scanalyzed . | . . . Part Schematics Acquired . | . . . Parts Damaged . | . . . Bothacking | -11 -10 -9 ------------ Run | Yrd Mat Mat Used RIF Installer . | . . . Robots Hacked . | . . . Non-combat . | . . . Combat . | . . . Robot Hacks Applied . | . . . Relay Couplers Released . | . . . Fabnet Peak Effective % . | . . . Robots Rewired . | . . . Allies Hacked . | . . . Hacks Repelled . | . . . Allies | -11 -10 -9 -------- Run | Yrd Mat Mat Total Allies . | . . . Largest Group . | . . . Highest-Rated Group . | . . . Highest-Rated Ally . | . . . Total Orders . | . . . Ally Attacks . | . . . Total Damage . | . . . Kills . | . . . Allies Corrupted . | . . . Allies Melted . | . . . Intel | -11 -10 -9 ------- Run | Yrd Mat Mat Robot Analysis Total . | . . . Derelict Logs Recovered . | . . . Drone Launches . | . . . Drone Recoveries . | . . . Exploration | -11 -10 -9 ------------- Run | Yrd Mat Mat Turns Passed 1078 | 48 425 605 Spaces Moved 593 | 36 269 288 Core 8 | 3 . 5 Treads . | . . . Legs . | . . . Wheels 585 | 33 269 283 Hover . | . . . Flight . | . . . Fastest Speed 50 | 50 90 135 Average Speed 137 | 90 115 163 Slowest Speed 1450 | 100 135 1450 Overloaded Moves . | . . . Propulsion Burnouts . | . . . Robots Hopped . | . . . Cave-ins Triggered . | . . . Exploration Rate (%) 27 | 3 58 20 Regions Visited 2 Branch Regions . Pre-discovered Areas . | . . . Known Exits Taken . | . . . Unknown Exits Taken 2 | 1 1 . Scrap Searched . | . . . Spaces Dug . | . . . Terrain Destroyed 68 | . 53 15 Melee . | . . . Projectile . | . . . AOE 68 | . 53 15 Terrain Rammed . | . . . Walls Destroyed . | . . . Machines Disabled . | . . . Actions | -11 -10 -9 --------- Run | Yrd Mat Mat Total 781 | 50 336 395 Wait 48 | . 5 43 Move 591 | 35 268 288 Hop . | . . . Pick Up 59 | 8 28 23 Fast Attach 6 | . 1 5 Attach 13 | 6 3 4 Detach . | . . . Swap 8 | 1 2 5 Drop 23 | . 5 18 Fire 31 | . 24 7 Melee . | . . . Ram 2 | . . 2 Kick . | . . . Crush . | . . . Escape Stasis . | . . . Rewire . | . . . Trap . | . . . Miscellaneous . | . . . Route ------- -11/Scrapyard -10/Materials (discovered 3 exits: *Mat / [*Min x2]) -9/Materials History --------- Turn | Location | Event 24 | -11/Scrapyard | Discovered new exit (range 16) 49 | -11/Scrapyard | Entered Materials 167 | -10/Materials | Discovered new exit (range 7) 301 | -10/Materials | Build established: Mutant 436 | -10/Materials | Discovered new exit (range 6) 444 | -10/Materials | Discovered new exit (range 16) 474 | -10/Materials | Entered another Materials area 474 | -9/Materials | Evolved 2 slots: Utility x2 536 | -9/Materials | Repaired Lgt. Ion Engine 1057 | -9/Materials | Core integrity fell below 50% 1071 | -9/Materials | Core integrity fell below 20% 1079 | -9/Materials | Destroyed by Y-45 Defender with Beam Rifle Last Messages --------------- 00933_ O-16 Technician: "IFF HANDSHAKE FAILED. SECURING TERMINAL." 00933_ O-16 Technician uses terminal to summon reinforcements. 00933_ ALERT: Hostiles spotted, dispatching reinforcements to Terminal M009. 00933_ O-16 Technician locks terminal. 00951_ Triggered Blade Trap. 00951_ Massive razor-sharp blades shoot up from within the floor. 00951_ Com. Wheel severed. 00951_ Imp. Assault Rifle severed. 00955_ Acquired Imp. Assault Rifle. 00961_ U-05 Engineer lays Concrete. 00967_ R-06 Scavenger collects Com. Wheel. 00971_ R-06 Scavenger collects Imp. Assault Rifle. 00986_ Wheel destroyed. 01010_ Lgt. Ion Engine destroyed. 01058_ Critical hit (Burn: +37). 01059_ Slammed into G-34 Mercenary. 01061_ Med. Matter Pod destroyed. 01061_ Critical hit (Burn: +37). 01073_ Slammed into G-34 Mercenary. 01079_ Critical hit (Burn: +37). Map ----- +----------------------------------------------------+ | ?????????????????????????????????????????????????? | | ?????????????????????????????????????????????????? | | ?????????????????????????????????????????????????? | | ????????????????########????#######???????????#### | | ????????????????# #????# ################ | | ??????????????### ###### # | | ??????????????? T ## # | | ???????????????? "" ## ### ] # | | ????????????????# ## #?# ############## # | | ????????????????? ## #########?############ # | | ??????##?????????# #?# # #??############ # | | ?????? ???????# #?# # """#??## # # | | ??????? """ ?????# #?# # """#??## # | | ?????? """ #### #?# + """#??## # | | ?????? """ + #?# # #??## """ + | | ?????# #### ### # #??## """ "" # | | ?????# """ ?????# ^^ ########??## """ T" # | | ?????+ ""???????#### ^#?????????## "" # | | ??????? ????????????# u #?????????## ! # | | ????????????????????# ############+######### | | ????????????????????# ############ | | ?????????????######## ### # | | ?????? ### """ # #####+## | | ?????????????############ ### """"" # ## * # | | ????????????????????????#g### """"" # ## # | | ????????????????????????#@### """"" / ## # | | ????????????????????????# ### """ # + [[! # | | ????????????????????????# ### ## ## [ # | | ????????????????????????# ### ## ## ]! [# | | ????????????????????????# ### = ## ## [ # | | ????????????????????????# ############# ######## | | ????????????????????????# # ### # # | | ????????????????????????# # ### # # | | ????????????????????????# # ### # # | | ????????????????????????#Y# ### # + | | ????????????????????????# ###+#####+### # # | | ???????????????????? # + | | ???????????????????????? ######## ########+# | | ????????????????????? ######## ####### | | ?????????????????????####+#???##### ###??## | | ????????????????????? ? ##### ####### | | ?????????????????????? """ ##### ####### | | ??????????????????????[ "R" + # | | ???????????????????? [ " " #####+### # | | ???????????????????## ? ## # # | | ???????????????????## ????## """ # ##### | | ???????????????????## ??????## "R" # ######## | | ???????????????????## ????????## " " # ##?##### | | ???????????????????###????????## # ##?????? | | ??????????????????????????????## # ##?????? | +----------------------------------------------------+ Best States ------------- Heat Dissipation 28 Energy Generation 10 Energy Capacity 325 Matter Stores 300 Matter Capacity 400 Sight Range 16 Terrain Scan Density 10 Armor Coverage 225 Evasion (%) 42 Item Schematics ----------------- None Robot Schematics ------------------ None Fabricated ------------ Nothing Alien Tech Used ----------------- None Achievements -------------- None Challenges ------------ None Game ------ Seed TacticalAlloyTearclaws Manual? 0 Play Time 00:22:36 Cumulative 9.4 hours Start 2024.10.27 @ 11:59:41 End 2024.10.27 @ 12:22:48 Sessions 1 Manual Loads 0 Difficulty Rogue Special Mode None Game No. 19 Rogue 19 Adventurer 0 Explorer 0 Win Type - Total 0 Types 0/0/0/0/0/0/0/0/0 Lore% 4 Gallery% 12 Achievement% 12 Wizard Run 0 Options --------- Layout 0 ASCII 0 Keyboard 0 Movement Numpad Keybinds 0 Fullscreen 1 Font 24/Tamsyn Map View 56x25 Zoom Use 92% Tactical HUD 1 Map Filters NONE Filters NONE Steam 1 RUN: 7ec64e0f-6a2b-418f-bd9f-3e2a0114b259